[Event "Grand Prix Romania 1st Stage 2024"]
[Site "Bucuresti"]
[Date "2024.03.24"]
[Round "6.31"]
[White "Soltanici, Ruslan"]
[Black "Vedmediuc, Artiom"]
[Result "1-0"]
[ECO "B14"]
[WhiteElo "2339"]
[BlackElo "2035"]
[Annotator "RC"]
[PlyCount "97"]
[EventDate "2024.03.20"]
[EventType "swiss"]
[EventCountry "ROU"]
[SourceTitle "playchess.com"]
[Source "ChessBase"]
[SourceQuality "1"]
[TimeControl "900+5"]

1. e4 {[%emt 0:00:04]} c6 {[%emt 0:00:00]} 2. d4 {[%emt 0:00:29]} d5 {[%emt 0:00:01]} 3. exd5 {[%emt 0:00:01]} cxd5 {[%emt 0:00:01]} 4. c4 {[%emt 0:00:02]} Nf6 {[%emt 0:00:18]} 5. Nc3 {[%emt 0:00:03]} Nc6 {[%emt 0:00:05]} 6. Bg5 {[%emt 0:00:13]} e6 {[%emt 0:00:54]} 7. Nf3 {[%emt 0:00:11]} Be7 {[%emt 0:00:04]} 8. Bd3 {[%emt 0:00:15]} O-O {[%emt 0:00:12]} 9. O-O {[%emt 0:00:03]} b6 {[%emt 0:01:15]} 10. Bxf6 {[%emt 0:02:21]} Bxf6 {[%emt 0:00:01]} 11. cxd5 {[%emt 0:00:02]} exd5 {[%emt 0:00:04]} 12. Bb5 {[%emt 0:01:02]} Qd6 {[%emt 0:01:44]} 13. h3 {[%emt 0:03:49]} Bf5 {[%emt 0:00:47]} 14. Re1 {[%emt 0:00:10]} Nb4 {[%emt 0:02:53]} 15. Rc1 {[%emt 0:00:02]} a6 {[%emt 0:00:15]} 16. Bf1 {[%emt 0:00:03]} Rfe8 {[%emt 0:00:24]} 17. Rxe8+ {[%emt 0:01:40]} Rxe8 {[%emt 0:00:08]} 18. a3 {[%emt 0:00:02]} Nc6 {[%emt 0:00:48]} 19. Qa4 {[%emt 0:03:43]} Bd7 {[%emt 0:01:55]} 20. Qd1 {[%emt 0:00:44]} b5 {[%emt 0:00:48]} 21. b4 {[%emt 0:00:41]} Bf5 {[%emt 0:00:15]} 22. Bd3 {[%emt 0:00:22]} Be4 {[%emt 0:00:31]} 23. Bxe4 {[%emt 0:00:37]} dxe4 {[%emt 0:00:08]} 24. Nd2 {[%emt 0:00:01]} Qxd4 {[%emt 0:01:40]} 25. Ndxe4 {[%emt 0:00:13]} Rxe4 {[%emt 0:00:26]} 26. Nxe4 {[%emt 0:00:04]} Qxe4 {[%emt 0:00:01]} 27. Qd7 {[%emt 0:00:14]} Nd8 {[%emt 0:00:19]} 28. Qc8 {[%emt 0:00:05]} h6 {[%emt 0:00:59]} 29. Qxa6 {[%emt 0:00:02]} Qe2 {[%emt 0:00:03]} 30. Qc8 {[%emt 0:00:08]} Qd2 {[%emt 0:00:20]} 31. Qc2 {[%emt 0:00:05]} Qd4 {[%emt 0:00:14]} 32. Rd1 {[%emt 0:00:02]} Qb6 {[%emt 0:00:03]} 33. Qe4 {[%emt 0:00:09]} Ne6 {[%emt 0:00:07]} 34. Qa8+ {[%emt 0:00:01]} Kh7 {[%emt 0:00:02]} 35. Qe4+ {[%emt 0:00:02]} Kg8 {[%emt 0:00:02]} 36. Rd5 {[%emt 0:00:09]} Qc6 {[%emt 0:00:09]} 37. Qd3 {[%emt 0:00:09]} Qc1+ {[%emt 0:00:04]} 38. Qd1 {[%emt 0:00:01]} Qc4 {[%emt 0:00:08]} 39. g3 {[%emt 0:00:02]} Bd4 {[%emt 0:00:03]} 40. Rf5 {[%emt 0:00:04]} g6 {[%emt 0:00:06]} 41. Rf3 {[%emt 0:00:04]} Qa2 {[%emt 0:00:01]} 42. h4 {[%emt 0:00:04]} h5 {[%emt 0:00:03]} 43. Qd3 {[%emt 0:00:05]} Qb2 {[%emt 0:00:05]} 44. Kf1 {[%emt 0:00:06]} Qa1+ {[%emt 0:00:03]} 45. Kg2 {[%emt 0:00:03]} Qb2 {[%emt 0:00:01]} 46. Qxb5 {[%emt 0:00:08]} Ba7 {[%emt 0:00:18]} 47. Qe8+ {[%emt 0:00:02]} Nf8 {[%emt 0:00:03]} 48. Qxf7+ {[%emt 0:00:02]} Kh8 {[%emt 0:00:01]} 49. Qxf8+ {[%emt 0:00:26]} 1-0

[Event "Grand Prix Romania 1st Stage 2024"]
[Site "Bucuresti"]
[Date "2024.03.24"]
[Round "6.32"]
[White "Veneteanu, Mihai"]
[Black "Sokolov, Ivan"]
[Result "1-0"]
[ECO "C94"]
[WhiteElo "2026"]
[BlackElo "2590"]
[Annotator "TA"]
[PlyCount "79"]
[EventDate "2024.03.20"]
[EventType "swiss"]
[EventCountry "ROU"]
[SourceTitle "playchess.com"]
[Source "ChessBase"]
[SourceQuality "1"]
[TimeControl "900+5"]

{[%evp 20,79,32,23,8,0,14,30,35,18,33,10,37,34,90,40,34,36,108,93,98,109,86,95,104,33,39,34,117,86,111,94,125,111,177,181,287,266,222,154,318,306,681,666,715,717,693,671,915,754,1006,940,952,951,1454,1315,1355,1446,1476,1477,1607,1563]} 1. e4 {[%emt 0:00:03]} e5 {[%emt 0:00:06]} 2. Nf3 {[%emt 0:00:02]} Nc6 {[%emt 0:00:01]} 3. Bb5 {[%emt 0:00:01]} a6 {[%emt 0:00:02]} 4. Ba4 {[%emt 0:00:01]} Nf6 {[%emt 0:00:02]} 5. O-O {[%emt 0:00:02]} Be7 {[%emt 0:00:03]} 6. Re1 {[%emt 0:00:03]} b5 {[%emt 0:00:01]} 7. Bb3 {[%emt 0:00:01]} d6 {[%emt 0:00:02]} 8. c3 {[%emt 0:00:04]} O-O {[%emt 0:00:03]} 9. h3 {[%emt 0:00:01]} Nb8 {[%emt 0:00:01][%cal Bc6b8,Bb8d7,Bd7c5][%mdl 32]} 10. a4 {[%emt 0:00:13]} Bb7 {[%emt 0:00:06]} 11. d3 {[%emt 0:01:04]} Nbd7 {[%emt 0:00:02]} 12. Nbd2 {[%emt 0:00:03]} Nc5 {[%emt 0:00:09]} 13. Bc2 {[%emt 0:00:02]} Nxa4 {[%emt 0:00:14] White has an edge.} 14. Bxa4 {[%emt 0:00:02]} bxa4 {[%emt 0:00:02]} 15. Qxa4 {[%emt 0:00:17]} Re8 {[%emt 0:00:14]} 16. Nc4 {[%emt 0:00:20]} Bf8 {[%emt 0:00:26]} (16... Bc8 $14) 17. Na5 {[%emt 0:00:41]} ({Better is} 17. Bg5 $16) 17... Bc8 $14 {[%emt 0:00:02]} 18. Bg5 {[%emt 0:00:25]} Re6 {[%emt 0:00:08] [#]} (18... Bd7 $14 19. Qd1 h6) 19. d4 $1 $16 {[%emt 0:01:20] White is much more active.} Bd7 {[%emt 0:01:48]} 20. Nc6 $36 {[%emt 0:02:04][%mdl 2048] Keeping Black busy.} Qe8 {[%emt 0:00:02]} 21. d5 {[%emt 0:00:03]} Bxc6 {[%emt 0:00:01]} 22. Qxc6 {[%emt 0:00:03]} (22. dxc6 $16 Rb8 23. Qxa6) 22... Qxc6 $14 {[%emt 0:00:02]} 23. dxc6 {[%emt 0:00:01] aiming for Bxf6.} Ree8 {[%emt 0:00:02]} (23... d5 $1 $14) 24. Bxf6 {[%emt 0:02:06]} gxf6 {[%emt 0:00:02]} 25. Nd2 {[%emt 0:00:02] Black is weak on the light squares} Reb8 {[%emt 0:02:28] [#]} 26. Nc4 {[%emt 0:00:02]} Rb5 {[%emt 0:00:02]} (26... a5 $16 {was necessary.}) 27. b4 $18 {[%emt 0:00:09]} Bh6 {[%emt 0:00:06]} (27... f5 $142 28. exf5 Bh6) 28. Red1 {[%emt 0:01:03]} f5 {[%emt 0:01:21]} 29. exf5 {[%emt 0:00:19]} f6 $2 {[%emt 0:00:03] A mistake that costs the game.} (29... e4 $16 30. g4 Bg5) 30. Ra5 {[%emt 0:01:02]} Kf7 $2 {[%emt 0:00:43] [#]} (30... Kf8 31. Kf1 e4) 31. Rxd6 $1 {[%emt 0:00:44][%mdl 512] White is clearly winning.} cxd6 {[%emt 0:00:31]} 32. Nxd6+ {[%emt 0:00:01]} Ke7 {[%emt 0:00:02]} 33. Nxb5 {[%emt 0:00:02][%mdl 4096] Endgame. KRB-KRN} Bd2 {[%emt 0:00:03]} 34. Kf1 {[%emt 0:01:03]} e4 {[%emt 0:00:20]} 35. Ke2 {[%emt 0:00:44]} Bf4 {[%emt 0:00:02]} 36. g3 {[%emt 0:00:37]} Bh6 {[%emt 0:00:02]} 37. Nc7 {[%emt 0:01:31][%csl LRa6,LRa8]} Rc8 {[%emt 0:00:14]} 38. Nd5+ {[%emt 0:00:02]} Kd6 {[%emt 0:00:03]} 39. c7 {[%emt 0:00:01]} Bf8 {[%emt 0:02:48]} 40. c4 {[%emt 0:00:02] Weighted Error Value: White=0.17 (very precise) /Black=0.60.  Loses game:     	---       	Black=1      Mistake:       	White=2     	Black=6      Inaccurate:     	White=1     	Black=2      OK:         	White=7     	Black=3      Best:        	---       	Black=1      Strong:       	White=1     	---        Brilliant:      	White=1     	---} (40. Rxa6+ Kxd5 41. Rxf6 Bg7 42. c4+ Kxc4 43. Rc6+ Kb5 $16) 1-0

[Event "Grand Prix Romania 1st Stage 2024"]
[Site "Bucuresti"]
[Date "2024.03.24"]
[Round "6.33"]
[White "Dragomirescu, Calin"]
[Black "Bernadskiy, Vitaliy"]
[Result "0-1"]
[ECO "E94"]
[WhiteElo "2019"]
[BlackElo "2573"]
[Annotator "RC"]
[PlyCount "112"]
[EventDate "2024.03.20"]
[EventType "swiss"]
[EventCountry "ROU"]
[SourceTitle "playchess.com"]
[Source "ChessBase"]
[SourceQuality "1"]
[TimeControl "900+5"]

1. Nf3 {[%emt 0:00:03]} Nf6 {[%emt 0:00:02]} 2. c4 {[%emt 0:00:01]} g6 {[%emt 0:00:01]} 3. Nc3 {[%emt 0:00:01]} Bg7 {[%emt 0:00:02]} 4. d4 {[%emt 0:00:02]} O-O {[%emt 0:00:02]} 5. e4 {[%emt 0:00:01]} d6 {[%emt 0:00:01]} 6. Be2 {[%emt 0:00:06]} Nbd7 {[%emt 0:00:03]} 7. O-O {[%emt 0:00:05]} e5 {[%emt 0:00:01]} 8. Be3 {[%emt 0:00:05]} Qe7 {[%emt 0:00:02]} 9. Qc2 {[%emt 0:00:19]} Re8 {[%emt 0:00:12]} 10. d5 {[%emt 0:00:22]} Nh5 {[%emt 0:00:40]} 11. Rfe1 {[%emt 0:00:14]} Nf4 {[%emt 0:00:51]} 12. Bf1 {[%emt 0:00:03]} a5 {[%emt 0:00:13]} 13. g3 {[%emt 0:00:20]} Nh5 {[%emt 0:00:01]} 14. Bh3 {[%emt 0:00:11]} Ndf6 {[%emt 0:00:50]} 15. Bxc8 {[%emt 0:00:04]} Raxc8 {[%emt 0:00:02]} 16. c5 {[%emt 0:00:25]} Ng4 {[%emt 0:00:08]} 17. Bg5 {[%emt 0:00:13]} Qd7 {[%emt 0:00:38]} 18. Qa4 {[%emt 0:00:55]} Qxa4 {[%emt 0:00:34]} 19. Nxa4 {[%emt 0:00:02]} f5 {[%emt 0:00:11]} 20. Bd2 {[%emt 0:00:36]} fxe4 {[%emt 0:00:07]} 21. Ng5 {[%emt 0:00:12]} e3 {[%emt 0:01:39]} 22. Bxe3 {[%emt 0:00:13]} Nhf6 {[%emt 0:00:36]} 23. Rad1 {[%emt 0:01:10]} Nxe3 {[%emt 0:00:30]} 24. Rxe3 {[%emt 0:00:10]} e4 {[%emt 0:00:41]} 25. Rb3 {[%emt 0:00:34]} Bh6 {[%emt 0:00:49]} 26. h4 {[%emt 0:00:14]} dxc5 {[%emt 0:00:23]} 27. Rxb7 {[%emt 0:00:16]} e3 {[%emt 0:00:03]} 28. f3 {[%emt 0:01:18]} Re5 {[%emt 0:03:09]} 29. Nc3 {[%emt 0:01:17]} Bxg5 {[%emt 0:00:04]} 30. hxg5 {[%emt 0:00:01]} Rxg5 {[%emt 0:00:02]} 31. Kg2 {[%emt 0:00:41]} Nh5 {[%emt 0:00:52]} 32. Ne2 {[%emt 0:00:44]} Rd8 {[%emt 0:00:40]} 33. Rxc7 {[%emt 0:00:56]} Rgxd5 {[%emt 0:00:03]} 34. Rxd5 {[%emt 0:00:13]} Rxd5 {[%emt 0:00:01]} 35. f4 {[%emt 0:00:19]} Rd2 {[%emt 0:00:21]} 36. Kf3 {[%emt 0:00:04]} Rxb2 {[%emt 0:00:02]} 37. Rxc5 {[%emt 0:00:19]} Rxa2 {[%emt 0:03:34]} 38. Kxe3 {[%emt 0:00:22]} Ra3+ {[%emt 0:00:00]} 39. Kf2 {[%emt 0:00:21]} Nf6 {[%emt 0:00:00]} 40. Rc7 {[%emt 0:00:26]} Ne4+ {[%emt 0:00:00]} 41. Kg2 {[%emt 0:00:10]} Re3 {[%emt 0:00:00]} 42. Nd4 {[%emt 0:00:32]} Rxg3+ {[%emt 0:00:00]} 43. Kh2 {[%emt 0:00:03]} Rc3 {[%emt 0:00:00]} 44. Ra7 {[%emt 0:00:11]} Rc4 {[%emt 0:00:00]} 45. Ne6 {[%emt 0:00:06]} a4 {[%emt 0:00:00]} 46. Rg7+ {[%emt 0:00:21]} Kh8 {[%emt 0:00:00]} 47. Ra7 {[%emt 0:00:01]} h6 {[%emt 0:00:00]} 48. Ra8+ {[%emt 0:00:10]} Kh7 {[%emt 0:00:01]} 49. Ra7+ {[%emt 0:00:01]} Kg8 {[%emt 0:00:02]} 50. Rg7+ {[%emt 0:01:03]} Kh8 {[%emt 0:00:02]} 51. Rxg6 {[%emt 0:00:29]} a3 {[%emt 0:00:01]} 52. f5 {[%emt 0:00:35]} a2 {[%emt 0:00:05]} 53. Rxh6+ {[%emt 0:00:01]} Kg8 {[%emt 0:00:02]} 54. Rg6+ {[%emt 0:00:01]} Kf7 {[%emt 0:00:04]} 55. Rg7+ {[%emt 0:00:05]} Kf6 {[%emt 0:00:01]} 56. Ra7 {[%emt 0:00:01]} Nc3 {[%emt 0:00:04]} 0-1

[Event "Grand Prix Romania 1st Stage 2024"]
[Site "Bucuresti"]
[Date "2024.03.24"]
[Round "6.34"]
[White "Sofronie, Iulian"]
[Black "Puskas, Andras"]
[Result "1/2-1/2"]
[ECO "D00"]
[WhiteElo "2395"]
[BlackElo "2097"]
[Annotator "TA"]
[PlyCount "194"]
[EventDate "2024.03.20"]
[EventType "swiss"]
[EventCountry "ROU"]
[SourceTitle "playchess.com"]
[Source "ChessBase"]
[SourceQuality "1"]
[TimeControl "900+5"]

{[%evp 67,194,0,0,0,41,37,39,41,34,0,65,59,68,65,63,27,27,27,27,27,27,27,27,27,65,65,65,30,35,30,65,57,64,64,29976,64,181,174,181,18,23,18,181,181,150,8,37,8,8,8,8,0,0,0,0,0,0,0,14,14,14,14,14,14,14,14,14,14,14,14,14,14,14,14,14,14,14,14,14,14,14,14,14,14,14,14,14,0,0,0,0,0,0,0,0,0,0,0,14,14,14,14,14,14,14,14,14,14,14,14,14,0,0,0,0,0,0,0,0,0,0,0,0,0,24,0,0,0,0]} 1. d4 {[%emt 0:00:02]} d5 {[%emt 0:00:02]} 2. Bf4 {[%emt 0:00:01]} Nf6 {[%emt 0:00:06]} 3. e3 {[%emt 0:00:01]} c5 {[%emt 0:00:04]} 4. c3 {[%emt 0:00:03]} Qb6 {[%emt 0:00:23]} 5. Qb3 {[%emt 0:00:12]} c4 {[%emt 0:00:40]} 6. Qc2 {[%emt 0:00:01] D00: Damenbauernspiele.} Nc6 {[%emt 0:00:08]} 7. Nd2 {[%emt 0:00:09]} e6 {[%emt 0:01:02]} 8. Ngf3 {[%emt 0:15:16]} Be7 {[%emt 0:13:20]} 9. Be2 {[%emt 0:00:00]} O-O {[%emt 0:00:00]} 10. h3 {[%emt 0:00:00]} Bd7 {[%emt 0:00:00]} 11. Ne5 {[%emt 0:00:00]} Rfc8 $146 {[%emt 0:00:00]} ({Predecessor:} 11... Nxe5 12. dxe5 Ne8 13. O-O f5 14. Nf3 Qd8 15. b3 b5 16. Nd4 Nc7 17. g4 fxg4 18. hxg4 {1-0 Simic,R (2361)-Ivanovic,N (2227) Belgrade-chT Quality 2015 (6)}) 12. O-O {[%emt 0:00:00]} Qd8 {[%emt 0:00:00]} 13. Bf3 {[%emt 0:00:00]} b5 {[%emt 0:00:00]} 14. e4 {[%emt 0:00:00]} Be8 {[%emt 0:00:00]} 15. Rfe1 {[%emt 0:00:00]} a5 {[%emt 0:00:00]} 16. exd5 {[%emt 0:00:00]} Nxd5 {[%emt 0:00:00]} 17. Bg3 {[%emt 0:00:00]} Nxe5 {[%emt 0:00:00]} 18. Bxe5 {[%emt 0:00:00]} Bc6 {[%emt 0:00:00]} 19. Ne4 {[%emt 0:00:00]} Nf6 {[%emt 0:00:00]} 20. Rad1 {[%emt 0:00:00]} Nxe4 {[%emt 0:00:00]} 21. Bxe4 {[%emt 0:00:00]} Bxe4 {[%emt 0:00:00]} 22. Qxe4 {[%emt 0:00:00]} Bf8 {[%emt 0:00:00]} 23. d5 {[%emt 0:00:00]} exd5 {[%emt 0:00:00]} 24. Rxd5 {[%emt 0:00:00]} Qb6 {[%emt 0:00:00]} 25. Bd4 {[%emt 0:00:00]} Qc6 {[%emt 0:00:00]} 26. Rg5 {[%emt 0:00:00]} Qd7 {[%emt 0:00:00]} 27. Qf4 {[%emt 0:00:00]} Ra6 {[%emt 0:00:00]} 28. a3 {[%emt 0:00:00]} Rg6 {[%emt 0:00:00]} 29. Rxg6 {[%emt 0:00:00]} hxg6 {[%emt 0:00:00]} 30. Qe5 {[%emt 0:00:00]} Qc6 {[%emt 0:00:00]} 31. h4 {[%emt 0:00:00]} Rd8 {[%emt 0:00:00]} 32. Re3 {[%emt 0:00:00]} Qd7 {[%emt 0:00:00]} 33. h5 {[%emt 0:00:00]} f6 {[%emt 0:00:00]} 34. Qh2 {[%emt 0:00:00]} Bd6 {[%emt 0:00:00]} 35. g3 {[%emt 0:00:00]} gxh5 {[%emt 0:00:00]} 36. Qxh5 {[%emt 0:00:00]} Bf8 {[%emt 0:00:11]} 37. Re4 {[%emt 0:00:00]} Qd5 {[%emt 0:00:09]} 38. Qe2 {[%emt 0:00:00]} b4 {[%emt 0:00:09]} (38... Kf7 $11) 39. axb4 {[%emt 0:00:00]} axb4 {[%emt 0:00:01]} 40. cxb4 {[%emt 0:00:00]} Bxb4 {[%emt 0:00:15]} 41. Bc3 {[%emt 0:00:00]} Bxc3 {[%emt 0:00:09]} 42. bxc3 {[%emt 0:00:00]} Qd3 {[%emt 0:00:06]} 43. Qg4 {[%emt 0:00:00]} Qd1+ {[%emt 0:01:02]} 44. Qxd1 {[%emt 0:00:00]} Rxd1+ {[%emt 0:00:01]} 45. Kg2 {[%emt 0:00:00]} Rc1 {[%emt 0:00:05]} 46. Rxc4 {[%emt 0:00:00]} Kf7 {[%emt 0:00:03]} 47. Rc7+ {[%emt 0:00:00]} Ke6 {[%emt 0:00:02]} 48. Kf3 {[%emt 0:00:00]} (48. Rxg7 Rxc3 49. Kf1 Rc4 $11) 48... Kd6 {[%emt 0:00:11]} 49. Rc8 {[%emt 0:00:00]} ({Ein No Go ist} 49. Rxg7 Rxc3+ 50. Kg4 Ke6) 49... g6 {[%emt 0:00:25]} 50. Ke3 {[%emt 0:00:00]} Rd1 $2 {[%emt 0:00:05][%mdl 8192]} (50... Ke6 $14) 51. f3 $2 {[%emt 0:00:00]} (51. Rd8+ {setzt Matt} Kc6 52. Rxd1 Kc5 53. Rb1 Kd5 54. Rc1 Kc4 55. Ke4 f5+ 56. Kf4) 51... Kd7 {[%emt 0:00:03]} (51... Rg1 $14) 52. Rg8 $18 {[%emt 0:00:00]} g5 {[%emt 0:00:06] [#]} 53. Ra8 $2 {[%emt 0:00:00]} (53. g4 $1 $18) 53... Rc1 $11 {[%emt 0:00:06]} 54. Ra3 {[%emt 0:00:00]} Rd1 $2 {[%emt 0:00:05]} (54... f5 $1 $11) 55. Ke4 $18 {[%emt 0:00:00]} Ke6 {[%emt 0:00:04]} 56. c4 {[%emt 0:00:00]} ({Besser ist} 56. g4 $16) 56... f5+ $11 {[%emt 0:00:04]} 57. Ke3 {[%emt 0:00:00]} Rg1 {[%emt 0:00:09]} 58. Ra6+ {[%emt 0:00:00]} Kf7 {[%emt 0:00:07]} 59. Kf2 {[%emt 0:00:00]} Rc1 {[%emt 0:00:01]} 60. Rc6 {[%emt 0:00:00]} Rc3 {[%emt 0:00:05]} 61. Ke2 {[%emt 0:00:00]} Rc2+ {[%emt 0:00:01]} 62. Kf1 {[%emt 0:00:00]} Ke7 {[%emt 0:00:07]} 63. Rg6 {[%emt 0:00:00]} Rxc4 {[%emt 0:00:01]} 64. Rxg5 {[%emt 0:00:00]} Kf6 {[%emt 0:00:01]} 65. Rg8 {[%emt 0:00:00]} Rc2 {[%emt 0:00:01]} 66. Re8 {[%emt 0:00:00]} Ra2 {[%emt 0:00:04]} 67. Re2 {[%emt 0:00:00]} Ra3 {[%emt 0:00:03]} 68. Kg2 {[%emt 0:00:00]} Rc3 {[%emt 0:00:01]} 69. f4 {[%emt 0:00:00]} Ra3 {[%emt 0:00:10]} 70. Rb2 {[%emt 0:00:00]} Rc3 {[%emt 0:00:07]} 71. Rb6+ {[%emt 0:00:00]} Kf7 {[%emt 0:00:02]} 72. Kh3 {[%emt 0:00:00]} Ra3 {[%emt 0:00:02]} 73. Kh4 {[%emt 0:00:00]} Rc3 {[%emt 0:00:07]} 74. Rh6 {[%emt 0:00:33]} Kg7 {[%emt 0:00:02]} 75. Rh5 {[%emt 0:00:05]} Kg6 {[%emt 0:00:01]} 76. Rg5+ {[%emt 0:00:03]} Kf6 {[%emt 0:00:01]} 77. Kh5 {[%emt 0:00:13]} Ra3 {[%emt 0:00:28]} 78. Rg8 {[%emt 0:00:15]} Kf7 {[%emt 0:00:03]} 79. Rg6 {[%emt 0:00:21]} Rb3 {[%emt 0:00:06]} 80. Rg5 {[%emt 0:00:08]} Kf6 {[%emt 0:00:01]} 81. Kh4 {[%emt 0:00:02]} Rb1 {[%emt 0:00:01]} 82. Kh3 {[%emt 0:00:03]} Rh1+ {[%emt 0:00:02]} 83. Kg2 {[%emt 0:00:01]} Ra1 {[%emt 0:00:01]} 84. Rg8 {[%emt 0:00:03]} Kf7 {[%emt 0:00:01]} 85. Rd8 {[%emt 0:00:01]} Kf6 {[%emt 0:00:05]} 86. Rd3 {[%emt 0:00:08]} Rb1 {[%emt 0:00:03]} 87. Kf3 {[%emt 0:00:02]} Rf1+ {[%emt 0:00:02]} 88. Ke3 {[%emt 0:00:01]} Re1+ {[%emt 0:00:02]} 89. Kd4 {[%emt 0:00:01]} Re4+ {[%emt 0:00:04]} 90. Kd5 {[%emt 0:00:01]} Re8 {[%emt 0:00:01]} 91. Kc6 {[%emt 0:00:08]} Kg6 {[%emt 0:00:08]} 92. Kd7 {[%emt 0:00:06]} Re1 {[%emt 0:00:01]} 93. Rd6+ {[%emt 0:00:34]} Kh5 {[%emt 0:00:02]} 94. Re6 {[%emt 0:00:03]} (94. Rf6 $5 Kg4 $8 95. Rg6+ Kf3 96. Kd6 $11) 94... Rd1+ {[%emt 0:00:04]} 95. Ke7 {[%emt 0:00:03]} Kg4 {[%emt 0:00:05]} 96. Kf6 {[%emt 0:00:05]} Rd3 {[%emt 0:00:09]} 97. Re8 {[%emt 0:00:07]} Rxg3 {[%emt 0:00:02]} 1/2-1/2

[Event "Grand Prix Romania 1st Stage 2024"]
[Site "Bucuresti"]
[Date "2024.03.24"]
[Round "6.35"]
[White "Magold, Filip"]
[Black "Stan, Andrei-Mihaita"]
[Result "1-0"]
[ECO "A26"]
[WhiteElo "2403"]
[BlackElo "2042"]
[Annotator "TA"]
[PlyCount "81"]
[EventDate "2024.03.20"]
[EventType "swiss"]
[EventCountry "ROU"]
[SourceTitle "playchess.com"]
[Source "ChessBase"]
[SourceQuality "1"]
[TimeControl "900+5"]

{[%evp 19,80,6,12,13,3,0,37,33,25,36,31,33,29,33,80,77,72,81,85,81,106,106,180,165,293,294,275,168,385,228,221,117,125,125,120,79,79,83,86,56,134,51,56,64,56,0,749,738,1148,1136,1190,1170,4132,2589,2271,2207,29983,29984,29984,1490,29998,29999,29999]} 1. c4 {[%emt 0:00:02]} e5 {[%emt 0:00:09]} 2. d3 {[%emt 0:00:05]} Nc6 {[%emt 0:00:09]} 3. Nf3 {[%emt 0:00:03]} g6 {[%emt 0:00:16]} 4. g3 {[%emt 0:00:05]} Bg7 {[%emt 0:00:03]} 5. Bg2 {[%emt 0:00:03]} Nge7 {[%emt 0:00:18]} 6. Nc3 {[%emt 0:00:07]} O-O {[%emt 0:00:11]} 7. O-O {[%emt 0:00:03]} d6 {[%emt 0:00:13]} 8. Rb1 {[%emt 0:00:05]} a5 {[%emt 0:00:07]} 9. a3 {[%emt 0:00:02][%cal Ba2a3,Ba3b4,Bb4b5][%mdl 32]} f5 {[%emt 0:01:01]} 10. Bd2 {[%emt 0:01:01]} h6 {[%emt 0:00:30]} 11. b4 {[%emt 0:00:03]} axb4 {[%emt 0:00:49]} 12. axb4 {[%emt 0:00:02]} Nd4 {[%emt 0:00:01]} 13. Nxd4 {[%emt 0:01:50] White is slightly better.} exd4 {[%emt 0:00:02]} 14. Nd5 {[%emt 0:00:02]} c6 {[%emt 0:01:06]} 15. Nxe7+ {[%emt 0:00:18]} Qxe7 {[%emt 0:00:02]} 16. b5 {[%emt 0:00:03]} c5 {[%emt 0:03:04]} (16... Bd7 $14) 17. Re1 $16 {[%emt 0:00:03]} Kh7 {[%emt 0:00:10]} 18. e3 {[%emt 0:00:08]} dxe3 {[%emt 0:01:18]} 19. Bxe3 {[%emt 0:00:03]} Qf6 {[%emt 0:01:08]} 20. h4 {[%emt 0:00:08]} Ra3 {[%emt 0:00:22]} (20... Ra7 $16 {was worth a try.} 21. Bf4 Qd8) 21. Bc1 $18 {[%emt 0:01:44]} Ra1 {[%emt 0:01:59]} (21... Ra2 $142 22. Qb3 Ra8) 22. Rxa1 {[%emt 0:00:47]} Qxa1 {[%emt 0:00:03]} 23. Re7 {[%emt 0:00:04][%cal Od1d2] [#] And now Qd2! would win.} Qf6 $2 {[%emt 0:00:15]} (23... f4 {is a better defense.} 24. gxf4 (24. Bxb7 Bxb7 25. Rxb7 fxg3 $17) 24... Kh8) 24. Qe2 {[%emt 0:00:17]} (24. Rc7 $142) 24... Rf7 {[%emt 0:00:16]} 25. Rxf7 {[%emt 0:00:47]} (25. Re8 $18 Rf8 26. h5) 25... Qxf7 $16 {[%emt 0:00:02]} 26. Bd5 {[%emt 0:00:04]} Qf8 {[%emt 0:00:27]} 27. b6 {[%emt 0:00:03]} Bf6 {[%emt 0:00:14]} (27... Qd8 $2 28. h5 $18) 28. Bf4 {[%emt 0:00:21]} Qe7 {[%emt 0:00:10]} 29. Qd2 {[%emt 0:00:48] White is much more active.} Bg7 {[%emt 0:00:41]} (29... g5 $14 30. hxg5 hxg5) 30. Qa5 {[%emt 0:00:21]} (30. Kg2 $16) 30... g5 $14 {[%emt 0:00:16]} 31. hxg5 {[%emt 0:00:15]} hxg5 {[%emt 0:00:01]} 32. Qa8 {[%emt 0:00:39]} (32. Be3 $14 Bf6 33. Qa8) 32... Bd7 $2 {[%emt 0:00:44][%mdl 8192]} (32... Qe1+ $11 33. Kg2 Bd4) 33. Be3 $18 {[%emt 0:00:16]} f4 {[%emt 0:00:34]} 34. Be4+ {[%emt 0:00:01]} Kh6 {[%emt 0:00:07]} 35. gxf4 {[%emt 0:00:01] [#] Strongly threatening Qg8.} gxf4 {[%emt 0:00:19]} 36. Bxf4+ {[%emt 0:00:02]} Kh5 {[%emt 0:00:01]} 37. Qg8 {[%emt 0:00:16] Threatening mate with Qh7+.} Qf6 {[%emt 0:00:30]} 38. Qh7+ {[%emt 0:00:26]} Kg4 {[%emt 0:00:04]} 39. Bg3 {[%emt 0:00:21]} (39. Be3 $142 Bh6 40. Qxd7+ (40. Bxh6 Bf5 $18) 40... Kh4 41. Bxh6 (41. Qxb7 Bxe3 42. Qh7+ Bh6 $18) 41... Qxh6 42. Qd8+ (42. Bxb7 Qc1+ 43. Kh2 Qf4+ 44. Kh1 Qc1+ 45. Kg2 Qg5+ 46. Kf3 Qf6+ 47. Kg2 Qg5+ 48. Kf3 Qf6+ 49. Kg2 Qg5+ $11) 42... Kg4 43. Qg8+ (43. Bxb7 Qg7 $18) 43... Qg5 44. Qxg5+ Kxg5 45. Bxb7) 39... Bc8 {[%emt 0:00:26]} 40. f3+ {[%emt 0:00:12]} Kxg3 {[%emt 0:00:11]} 41. Qh2# {[%emt 0:00:02] Weighted Error Value: White=0.32/Black=0.72.  Loses game:     	---       	Black=1      Mistake:       	White=4     	Black=5      Inaccurate:     	White=3     	Black=2      OK:         	White=11    	Black=3      Best:        	White=1     	Black=4} 1-0

[Event "Grand Prix Romania 1st Stage 2024"]
[Site "Bucuresti"]
[Date "2024.03.24"]
[Round "6.36"]
[White "Bulau, Andrei-Cristian"]
[Black "Mozes, Ervin"]
[Result "1-0"]
[ECO "A81"]
[WhiteElo "2142"]
[BlackElo "1975"]
[Annotator "NA COMBH"]
[PlyCount "39"]
[EventDate "2024.03.20"]
[EventType "swiss"]
[EventCountry "ROU"]
[SourceTitle "playchess.com"]
[Source "ChessBase"]
[SourceQuality "1"]
[TimeControl "900+5"]

1. d4 {[%emt 0:00:00]} c6 {[%emt 0:00:09]} 2. c4 {[%emt 0:00:06]} d6 {[%emt 0:00:06]} 3. Nc3 {[%emt 0:00:04]} e5 {[%emt 0:00:03]} 4. Nf3 {[%emt 0:00:04]} Qc7 {[%emt 0:00:06]} 5. g3 {[%emt 0:00:07]} f5 {[%emt 0:00:49]} 6. dxe5 {[%emt 0:00:28]} dxe5 {[%emt 0:00:02]} 7. Bg2 {[%emt 0:00:02]} Nf6 {[%emt 0:00:12]} 8. O-O {[%emt 0:00:08]} Be6 {[%emt 0:00:20]} 9. b3 {[%emt 0:00:15]} Nbd7 {[%emt 0:00:13]} 10. Bb2 {[%emt 0:00:05]} Be7 {[%emt 0:00:56]} 11. Rc1 {[%emt 0:00:07]} g6 {[%emt 0:01:48]} 12. Nd5 {[%emt 0:01:07]} Bxd5 {[%emt 0:02:51]} 13. cxd5 {[%emt 0:00:02]} c5 {[%emt 0:00:00]} 14. Ng5 {[%emt 0:00:54]} Nf8 {[%emt 0:00:01]} 15. b4 {[%emt 0:01:02]} c4 {[%emt 0:01:33]} 16. Qa4+ {[%emt 0:00:54]} N6d7 {[%emt 0:00:35]} 17. Ne6 {[%emt 0:00:39]} Qd6 {[%emt 0:01:19]} 18. Rxc4 {[%emt 0:00:15]} Nxe6 {[%emt 0:00:03]} 19. dxe6 {[%emt 0:00:02]} Qxe6 {[%emt 0:00:01]} 20. Rc7 {[%emt 0:00:09]} 1-0